{"text_format":"3","workbook":"xlsx","n_sheets":1,"sheets":["Sheet1"],"not_rendered":{"defined_names":1},"read":"whole","date_system":"1900"}

{"sheet":"Sheet1","index":0,"n_rows":35,"n_cols":8,"rows_kept":35,"merged":[[0,0,0,7],[2,0,10,0],[2,1,10,1],[11,0,12,0],[11,1,12,1],[13,0,14,0],[13,1,14,1],[15,0,27,0],[15,1,27,1],[29,0,32,0],[29,1,32,1],[33,0,33,6],[34,0,34,7]]}
["多媒体设备清单"]
["序号","设备名称","名称","参数规格","单位","数量 ","单价","总价"]
[1,"180度环幕系统","激光工程投影机","1、显示技术：激光适配液晶盘3LCDx0.64；\n2、分辨率：WUXGA (1920*1200) ，支持16：10宽高比（兼容4：3）；\n3、亮度：7000流明，对比度：5000000：1；\n4、镜头:F1.8，f=8.3mm；\n镜头投射比：0.5；\n投影尺寸:80\"-300\"；\n5、接口：\n输入接口：HDMI*2，USB-Type A*2，VGA in*1，Video in*1，Audio in（mini jack,3.5mm）*1；\n输出接口：Audio out（mini jack,3.5mm）*1，VGA out*1；\n控制接口：RS232*1 /RJ45*1；\n6、光源寿命：正常模式：20000h，经济模式：25000h\n7、投影机功率：370W max，待机功耗<0.5W 扬声器 10W\n8、数字梯形校正：垂直：±40°(自动+手动)；水平：±15°(手动)；\n9、重量：7.5kg；\n10、外观尺寸：445*350*100mm（⻓x宽x⾼）不含凸出部分。\n应用要求：\n◆数字变焦功能及数字位移功能；\n◆可变更串口波特率；\n◆具备远程访问和控制投影仪功能(LAN)；\n◆自定义开机画面。USB直读图片、音频、文件及视频功能；\n◆多种图像模式，支持DICOM模拟模式；\n◆快速开关机功能，自定义开机画面；\n◆垂直水平数字梯形修正，四角校正功能，360度灵活安装功能；\n◆节能模式选择，一键黑屏功能，支持高海拔模式，断电保护功能；\n◆具备送信号开机与送电开机功能。无信号自动关机（可设定一定时间后自动关机）；\n◆标配遥控器可控制多台投影机及1~9组配对码。","台",8,null,{"$f":"G3*F3","v":0}]
[null,null,"短焦镜头","投射比：0.5：1,。焦距：f=7.46mm,·光圈：f/2.8,视场角：F0V100°,·分辨率：>0.4@100p。","个",8,null,0]
[null,null,"显示器","22寸 VGA+HDMI+内置音箱 75赫兹","台",2,null,0]
[null,null,"多媒体服务器","CPU：  ≥I5 10代\n显卡： 专业视频融合图显显卡\n内存：  ≥16G\n硬盘：  ≥500GB\n电源：  ≥600w\n机箱：  4U工控","台",2,null,0]
[null,null,"融合播放系统\n（两个4通道）","可通过8个输入输出通道显示分辨率为,19200×3240图像；可通过单个输入输出,通道显示4088×4088@30H2:可通过客,输入/输出,户端软件对输入偷出的分辨，单进行自定义,分辨率/帧,设置；支持多通道任意组合融合，自动产,率检验,生叠加带像素；支持任意几何校正边缘融合；每通道输出分辨率高达4K860z,支持,视频格式MP4、MOV、AVL,支持图片格,式JPG、PNGBMP,支持遮罩功,可同步输出顿率为60顿/秒的视频图像,输出显示的图像不应有抖动、卡领，和错,位现象,可通过客户端软件进行底图叠加,单个屏幕最多可显示32个窗口，可通过,客户端软件对不同的窗口进行缩放、施,底图,动操作,功能检验,可通过客户端软件对显示窗口进行复制，,并对复制后的窗口进行移动，缩放、叠加,和漫游操作,可通过客户端软件对偷出桥色的红绿/，蓝,/白进行256阶独立调整,KVM协作,可进行KVM选程协作控制,控制检验,可通过客户端软件对接入的拼接显系屏，,分组控制,投影、LED显示屏、LCD显示屏进行，分组功能检验，分组控制。","通道",8,null,0]
[null,null,"HDMI+IR信号放大器","传输距离：200米,分辨率：1920*1080P@60Hz,线规：,CAT5E及以上网线,静电保护：±8KV(接触放电),产品电源：DC5V,外壳材质：铝壳。","台",8,null,{"$f":"G8*F8","v":0}]
[null,null,"人体感应编程","定制：python编程+感应雷达编程。手势映射与交互逻辑：将多普勒雷达捕捉到的手势信号，通过编程转化为对数字内容（如图像、动画、模型、音效等）的实时控制指令。例如，挥动、抓取、滑动等手势可直接操控屏幕内容的变换、选择或操作。实现“隔空”交互体验，使参与者无需穿戴额外设备或直接触碰屏幕，仅通过身体动作即可与内容深度互动，从而实现流程图中“参与者手势”到“互动单元内容主题”的无缝驱动。","套",1,null,0]
[null,null,"多普勒感应雷达","1、24 GHz ISM频段，整合智能毫米波雷达芯片和智能算法固件，精准运动目标定位和跟踪，最远探测距离6m，超小模组尺寸：15mm x 44mm，挂壁安装，方位角±60°，俯仰角±35°。\n2、高精度非接触感知：利用多普勒效应原理，实现对参与者手势的非接触、高精度、动态捕捉。它可以结合摄像头或直接拍摄，即可探测手部的细微动作、运动方向和速度变化。\n手势信号生成：将捕捉到的手部空间位移、速度等信息转化为系统可识别和处理的控制信号或数据流，为后续的交互响应提供输入信号。","个",4,null,0]
[null,null,"投影支架","承重45KG","个",8,null,0]
[2,"互动\n设备","55寸AI互动一体机","显示屏类型,DLED液晶显示屏,物理分辨率,1920*1080,显示色彩,10bit,1.07B,刷新率,30HZ,亮度,320cd/m2,对比度,5000:1,视角（度）,178°(H/V),显示屏防护,3mm全钢化高防爆玻璃,背光灯寿命,50000小时\n触摸嵌入方式,内置一体式，非外挂式,触摸感应技术,红外感应识别触摸技术,触摸识别点数,20点,书写方式,手指、触摸笔或其它直径不小于5mm非透明物体（多点8mm),光标速度,120点/s,定位精度,90%以上触摸区域为±1mm,通讯接口,B型USB公头,触摸分辨率,32767*32767,触摸次数,理论无限次,计算机响应,系统自动识别：≤15ms,驱动程序,免驱\n外壳及外观,铝型材面框角块设计、前置按键、前置端口、前置喇叭,颜色,黑色,整机外形尺寸,1258.0mm×770.5mm×81.3mm,包装尺寸,1370mm×880mm×180mm,净重,27KG,毛重,32KG,最大功耗率,s130W(独立CPU高配电脑约180W),待机功率,s0.5W,安装方式,壁挂架、移动支架、伸缩支架（选配）。","台",1,null,0]
[null,null,"AI互动一体机C#编程","1.开放的点位设置系统:客户可以根据需要,20个播放点位自由添加或者删减感应位置数,支持背景图实时同步。\n2.开放二的用户接口协议:数据通信协议UDP,中控协议:UDP4、支持滑轨屏接入客户的中控系统。\n3.触屏互动系统:飞屏、甩屏等\n4.控制方法多样:触摸屏控制,中控控制。 \n","套",1,null,0]
[3,"音响\n设备","吸顶音响","≥6寸天花吸顶音箱,额定功率≥60W、峰值功率≥100W,阻抗：8Ω；频率响应：≥70Hz-20KHz,灵敏度：≥91dB/1W/1M,机身材质：铁后壳/ABS面板。","只",2,null,0]
[null,null,"功放","具有特强抑制话筒啸叫的功能,采用原装进口混响芯片, 4路输入通道,配置更合理更方便,完善的过热、短路及直流等扬声器保护功能,温控冷却风扇加强散热效率，满足长时间工作,前后均设有麦克风输入插孔，更方便实用,输出功率8Ω）:≥2*150W/8Ω、≥2*300W/4Ω,频率响应：≥20Hz-20KHz,±0.1dB。","台",1,null,0]
[4,"中控设备","电源时序器","功能：带空气开关、独立开关、直通开关,额定输出电压,交流220V50HZ,可控制电源,8路+2路辅助通道,每路动作延时时间,1s,供电电源,AC220V50/60HZ30A,状态显示,电压、总功率、通道开关状态,单路额定输出电流,30A,单路额定输出功率,5000W,额定总输出功率,10000W,尺寸（前宽X高X左右宽X后宽）,480x48x165x480mm。","台",1,null,{"$f":"G16*F16","v":0}]
[null,null,"机柜、机架","1.名称：机柜、机架\n2.材质：满足设计要求\n3.规格：尺寸：600×800×2050mm，承重500KG(静载)，颜色RAL9004黑色，防护等级IP20\n4.安装方式：满足设计要求\n5.其他要求：满足设计、相关图集、标准及招标技术要求。\n","台",1,null,0]
[null,null,"物联网主机","概述：物联网主机，纯本地部署。支持TCP、UDP、LoRa、RS485、RS232，GPIO、RELAY 输出等丰富的物联网设备接入，最大接入500台设备。支持LoRa无线智能设备接入，支持网络、串口、干节点等有线设备的接入。内置物模型，快速连接各类型的设备。支持空间管理、设备管理、用户管理、智能策略等功能；支持丰富的应用场景（包括多媒体展厅、智能会议室、安全用电、智能照明、智能空调、节能减排等），包含软件和硬件。计算存储：四核ARM Cortex-A55，每核主频高达/2.0GHz，运行内存：4G，存储：32G。\n接口类型：网口RJ45*2个，串口RS232*4个，串口RS485*2个，干节点输入GPIO*4个，继电器RELAYOUTPUT*4个，USB2.0*1，USB3.0*1，无线lora通道*2.                                                                     设备尺寸：长 442mm*宽 200mm*高 43.6mm，1U机架式安装。\n供电方式：VAC，220V50Hz。\n配套软件：① 易联控软件（安卓版）、②手机APP集中控制软件（安卓 ）、③ 手机APP集中控制软件（ IOS版）。\n内置物联网平台管理软件功能特点：\n①、物联网化物模型建立，支持空间管理、设备管理、智能策略、日志记录、数据分析等功能、\n②、支持APP用户管理及设备和策略分级权限管理功能、\n③、平台支持远程快速运维功能，故障设备一键替换功能、\n④、软件支持远程升级服务。 \n软件授权：① 平板电脑端APP软件授权，默认16授权。②智能终端接入授权，默认500个授权。③手机APP接入授权，默认免费授权。","个",1,null,0]
[null,null,"平板电脑","1、硬件参数：屏幕尺寸10.4英寸，运行内存（RAM）4GB，屏幕色彩1670万色，存储容量（ROM）64GB  \n2、软件：内含德云物联Deeyuniot的“智慧展厅中控系统APP\"，全自动零代码编程。","个",1,null,0]
[null,null,"电脑管理器","1、物联网展厅多媒体中控系统软件标准版，SAAS混合云部署 ，软件套装包含：\n①展厅多媒体中控系统软件V2.0  （可提供软件著作权证书）  \n②DeeyuniotMS多媒体服务软件\n③DeeyuniotMC多媒体集中管理端软件\n④手机APP集中控制软件（安卓版）\n⑤手机APP集中控制软件（IOS版）\n⑥智慧展厅平板电脑中控软件（安卓版）\n⑦智慧展厅平板电脑中控软件（IOS版）\n2、展厅场景功能特点：\n①、可视化：视频、图片、PPT播放画面在PAD电脑上实时回显，可视化的设备运行状态、可视化的零代码编程。\n②、可控性：各种视频、图片、PPT拖拽式切换，视频播放进度条控制，音量大小可由音量条控制。可以在平板电脑端执行一键场景，支持场景执行时，锁定功能，避免误操作。\n③、可管理：各种视频、图片、PPT文件均可通过后台统一管理分配给Windows电脑和Android多媒体播放盒，摆脱U盘COPY资料，低效率、中病毒高风险。\n④、可编程：零代码WEB页面编程调试，多种定时、一键、联动、告警策略快速编程调试，PAD端、手机端APP分级分权限调用。快捷、稳定、可靠、可视、可记录。\n【一键场景】：通过设置一键场景策略可以很快速设置多条常用的场景，可以快速的实现不同场景切换，按照需求选择合适的场景开启。支持场景执行时，锁定功能，避免误操作，锁定时长可0-500S任意设置。\n【定时策略】：同时支持时间和星期两个维度设置定时功能，定时可执行1台或多台设备开关，也可定时执行已编辑好的一键场景。\n【联动策略】：可以以时间区间和星期两个维度设置物联网设备的开关或达到某个值时，联动其它设备的开关及视频节目的播放，也可以通过设置节目的播放任意时间点，来联动设备的开关及其它视频节目的播放，同时也支持一键场景的联动。\n【巡检策略】：可以以时间和星期两个维度对指定设备状态的巡检，巡检设置的当关状态是否为目标值，当前状态与目标状态不一致时，可以自动执行开关，使其与目标状态一致，这样可以大大节省能源，同时也是检测了设置是否联网正常。\n【告警策略】：以时间区间和星期两个维度设置某温度值超过设定时，或某台设备打开时，自动触发系统告警，告警事件可以联动其他的设备开关和一键场景。\n⑤、可拓展性强。真正的物联网展厅软件平台，可扩展到客户其它场景空间，共享一套系统平台，比如会议室中控、领导办公室、整个办公区域\n⑥、支持展厅生态软、硬件设备的协议对接，实现设备开关控制、状态真实反馈，软件打开与控制。\n⑦、支持混合云部署，可在云端远程调试运维，也支持纯本地部署，本地调试运维。\n⑧、智慧展厅平板电脑中控软件，支持更新背景图片，支持分组节目管理，支持【定时策略】、【联动策略】、【巡检策略】、【告警策略】功能启停。支持账户登录方式，免编程，分空间设备权限、策略权限。支持视频、图片、PPT等电脑画面同步显示，反向鼠标控制。\n⑨、支持设备端、展厅平板电脑中控软件端、手机APP等所有状态同步显示，设备级真实反馈。\n控制电脑主机开、关机，调节电脑音量大小功能，最多可控32台电脑开关。通过局域网内TCP/IP协议，被控制电脑的网卡支持远程开机功能 ，需要被控电脑端安装DeeyuniotPCM软件配合，检测电脑开关机状态，双向反馈到物联网平台及APP软件。","个",1,null,0]
[null,null,"展厅多媒体中控系统软件V2.0","1、物联网展厅多媒体中控系统软件标准版，SAAS混合云部署，软件套装包含：①展厅多媒体中控系统软件V2.0 ②Deeyuniot MS多媒体服务软件、③DeeyuniotMC多媒体集中管理端软件 ④手机APP集中控制软件（安卓 ）、 ⑤手机APP集中控制软件（ IOS版）、 ⑥智慧展厅多媒体中控软件（安卓版）                                                                      2、平台软件功能特点： ①支持第三方的应用软件对接（包括展厅中控、智慧办公、会议预约、智慧教室、安全用电、节能减排、安防门禁等），支持API协议二次开发  ②、支持APP用户管理及设备和策略分级权限管理功能 ③、支持设备的能源数据分析功能 ④、 物联网化物模型建立，支持空间管理、设备管理、智能策略、日志记录、数据分析等功能 ⑤、平台支持远程快速运维功能，故障设备一键替换功能（含物联网主机、网关、终端设备） ⑥、软件支持远程升级服务                                                                                                                            3、展厅场景功能特点：①、可视化：视频、图片PPT播放画面在PAD的上实时回显。 ②、可控性：各种视频、图片、PPT飞屏切换，视频播放进度条控制，音量大小音量条控制。                                        ③、可管理：各种视频、图片、PPT文件均可后台统一管理分配，摆脱U盘COPY资料低效率、高风险。 ④、可编程：零代码WEB页面编程调试，多种定时、一键、联动、告警策略快速编程调试，PAD端、手机端APP分级分权限调用。快捷、稳定、可靠、可视、可记录。  ⑤、支持展厅生态软、硬件设备的协议对接，实现设备开关控制、状态真实反馈，软件开闭与控制。                                                                               ⑥、真正的物联网展厅软件平台，可扩展到客户其它场景空间，共享一套系统平台，比如会议室中控、领导办公室、整个办公区域。","个",1,null,0]
[null,null,"智能终端账户接入授权Lic","Pad交互软件授权（展厅移动端所有控制操作界面及指令发送，如一键开馆，视频播放、暂停等控制，4账户/组）。","个",1,null,0]
[null,null,"智能终端设备接入授权Lic","智能终端接入授权（一个智能终端（如照明开关），需要购买一个授权，适用于德云物联IoT物联OS平台标准版，16个/组 ）。","个",1,null,{"$f":"G23*F23","v":0}]
[null,null,"手机APP接入授权","手机APP软件，可远程控制所有的设备开关电源，但不支持视频等多媒体节目的播控，可按空间分权限，按人员分级分权。不限制用户数量。","个",1,null,0]
[null,null,"投影仪控制器","1、支持常用投影机等设备通过RS485或RS232协议对接，设备的模式或控制协议指令，现场快速写入TCP控制器，可重复擦写。实现设备一键联网。\n2、支持投影机的开关、静音、信号源切换等功能控制。检测平板一体机的开关机状态。\n3、支持一路COM口，RS232协议，支持一路RS485协议，常用设备协议代码支持从云端下载，支持TCP协议上传。\n4、结合网关和主机可实现设备定时开关、远程控制、自动控制等。\n5、企业级产品，铁壳，工作电源DC12V，工作温度：0~45℃；工作湿度（非凝结）：5%~95%。\n有线投影机控制器，可实现 RS232/485//与TCP/IP网络转换。用于投影机设备的联网。与Deeyuniot平台的联接，数据互通，设备开关等功能。电源：内正外负，标准DC电源插座DC 5～36V，1A。外壳：铁制外壳，尺寸：100*71*22mm 每台投影机需要1台。","个",8,null,0]
[null,null,"八路照明控制模块","8路电源控制器，LED灯类负载最大支持2kW/路，30A继电器，支持RS485协议，可与TCP控制器或LoRa控制器（照明版）联接。支持状态反馈。标配无线LoRa控制器，或选配有线TCP控制器。","个",1,null,0]
[null,null,"智能控制设备","隐藏式无刷窗帘电机、智能联网：,工作电压：,米家蓝牙+天猫精灵蓝牙,100~240Vac,产品功率：,额定扭矩：,24W,2.0N.m,电源线长度：,电机尺寸：,1.2米(tpcy-c),高5.8*宽4.4*长8.8cm。","米",70,null,0]
[null,null,"展厅5G无线网络","移动无线网络，同时最高可链接32台设备。下行速度达150M 支持移动、电信、联通。","套",2,null,0]
[5,"全息\n影像","数字人","显示尺寸：56CM\n最大功率：72W/216W24V\n视频格式：MP4\n控制方式:WIFI (2.4G/5G)\n输入电压:100-240VAC,50/60HZ\n颜色:黑色\n灯珠数量:153*4/*3\n运行系统:Android 7.1\n支持系统:Windows,IOS,Android\nCPU:ARM四核1.5G处理器\n存储:4GB\n产品尺寸:56cm*56cm*7cm/*3\n支持视频格式:JPG、GIF、MP4、AVI、,RMVD、MPEG\n重量：0.78KG,全套：12.3KG\n显示角度：176度\n通透率：92%\n噪音：46分贝\n材料：ABS+PC/AL\n机器寿命：30000小时\n最大分辨率：1836*1836\n帧率：24帧/秒\n亮度：2400cd/m2\n化境温度：-30至60摄氏度,室内、室外\n使用环境：(需保护罩)\n音频输出：支持（蓝牙）\n功能特点：支持点对点控制、网络,远程控制、集群","套",1,null,0]
[6,"其它","辅材","涉及项目电源、转换头等辅材","项",1,null,{"$f":"G30*F30","v":{"v":0,"d":"0.00"}}]
[null,null,"网线","6类","m",400,null,{"v":0,"d":"0.00"}]
[null,null,"HDMI 8K高清信号线",null,"m",600,null,{"v":0,"d":"0.00"}]
[null,null,"安装调式",null,"项",1,null,{"v":0,"d":"0.00"}]
["合计：                           税率（     %）",{"$nulls":6},{"$f":"SUM(H3:H33)","v":0}]
["备注：\n1、以上报价不含影视制作\n2、询价申请人应按《多媒体控制示意图》、《多媒体动画控制示意图》及《多媒体设备清单》的设备数量和参数要求，结合建筑施工图进行报价，报价应包含多媒体设备和配套软件的采购、运输、安装、调试以及相应的人工、材料、机械、措施、管理费、利润、税金等所有费用，安装前应对设备安装进行深化设计并提供详细安装图及视频效果。"]